[Event "Titled Tuesday Blitz February 15 Early 2022"]
[White "Johnson, Ben"]
[Black "Ozdemir, Serhan Berat"]
[WhiteFideId "2010917"]
[BlackFideId "6374611"]
[WhiteElo "2208"]
[BlackElo "1920"]
[Result "1-0"]
[Round "07"]
[TimeControl "180+1"]
[Date "2022.02.15"]
[WhiteClock "0:00:07"]
[BlackClock "0:00:11"]

1. Nf3 {[%clk 0:03:00]}  Nf6 {[%clk 0:02:58]} 2. c4 {[%clk 0:03:00]}  g6 {[%clk 0:02:58]} 3. b3 {[%clk 0:03:00]}  Bg7 {[%clk 0:02:58]} 4. Bb2 {[%clk 0:03:01]}  O-O {[%clk 0:02:58]} 5. g3 {[%clk 0:03:01]}  d6 {[%clk 0:02:57]} 6. d4 {[%clk 0:03:00]}  c6 {[%clk 0:02:55]} 7. Bg2 {[%clk 0:03:00]}  Qa5+ {[%clk 0:02:41]} 8. Bc3 {[%clk 0:02:56]}  Qh5 {[%clk 0:02:39]} 9. O-O {[%clk 0:02:49]}  Bh3 {[%clk 0:02:38]} 10. Nbd2 {[%clk 0:02:48]}  Nbd7 {[%clk 0:02:35]} 11. e4 {[%clk 0:02:43]}  e5 {[%clk 0:02:25]} 12. Bxh3 {[%clk 0:02:24]}  Qxh3 {[%clk 0:02:19]} 13. Ng5 {[%clk 0:02:13]}  Qh5 {[%clk 0:02:00]} 14. Qxh5 {[%clk 0:02:11]}  Nxh5 {[%clk 0:02:01]} 15. d5 {[%clk 0:02:10]}  h6 {[%clk 0:01:41]} 16. Nh3 {[%clk 0:01:55]}  f5 {[%clk 0:01:40]} 17. f3 {[%clk 0:01:52]}  a5 {[%clk 0:01:28]} 18. Rad1 {[%clk 0:01:47]}  Nc5 {[%clk 0:01:21]} 19. Nf2 {[%clk 0:01:43]}  cxd5 {[%clk 0:01:10]} 20. cxd5 {[%clk 0:01:36]}  b5 {[%clk 0:01:08]} 21. Nb1 {[%clk 0:00:44]}  Nf6 {[%clk 0:01:03]} 22. exf5 {[%clk 0:00:34]}  gxf5 {[%clk 0:01:04]} 23. f4 {[%clk 0:00:32]}  Nfe4 {[%clk 0:01:02]} 24. Nxe4 {[%clk 0:00:28]}  Nxe4 {[%clk 0:01:03]} 25. Bb2 {[%clk 0:00:26]}  Rac8 {[%clk 0:00:41]} 26. Rc1 {[%clk 0:00:26]}  Nc5 {[%clk 0:00:35]} 27. Rfd1 {[%clk 0:00:21]}  e4 {[%clk 0:00:34]} 28. Bxg7 {[%clk 0:00:20]}  Kxg7 {[%clk 0:00:35]} 29. Na3 {[%clk 0:00:16]}  b4 {[%clk 0:00:11]} 30. Nc4 {[%clk 0:00:15]}  Nd3 {[%clk 0:00:12]} 31. Rc2 {[%clk 0:00:13]}  Rc5 {[%clk 0:00:13]} 32. Ne3 {[%clk 0:00:08]}  Rfc8 {[%clk 0:00:12]} 33. Rxc5 {[%clk 0:00:07]}  Rxc5 {[%clk 0:00:13]} 34. Nxf5+ {[%clk 0:00:07]}  Kf6 {[%clk 0:00:11]} 35. Nxd6 {[%clk 0:00:08]}  e3 {[%clk 0:00:04]} 36. Ne4+ {[%clk 0:00:07]}  Kf5 {[%clk 0:00:04]} 37. Nxc5 {[%clk 0:00:08]}  e2 {[%clk 0:00:05]} 38. Rb1 {[%clk 0:00:07]}  Nxc5 {[%clk 0:00:05]} 39. Kf2 {[%clk 0:00:07]}  e1=Q+ {[%clk 0:00:05]} 40. Kxe1 {[%clk 0:00:06]}  Ke4 {[%clk 0:00:06]} 41. Rd1 {[%clk 0:00:04]}  Kf5 {[%clk 0:00:05]} 42. d6 {[%clk 0:00:04]}  Nd7 {[%clk 0:00:06]} 43. Kf2 {[%clk 0:00:04]}  Ke6 {[%clk 0:00:07]} 44. Kf3 {[%clk 0:00:04]}  a4 {[%clk 0:00:08]} 45. g4 {[%clk 0:00:04]}  axb3 {[%clk 0:00:09]} 46. axb3 {[%clk 0:00:04]}  h5 {[%clk 0:00:09]} 47. g5 {[%clk 0:00:04]}  Kf5 {[%clk 0:00:09]} 48. Kg3 {[%clk 0:00:03]}  Ke6 {[%clk 0:00:08]} 49. Kh4 {[%clk 0:00:04]}  Kf5 {[%clk 0:00:08]} 50. Kxh5 {[%clk 0:00:04]}  Nf8 {[%clk 0:00:09]} 51. g6 {[%clk 0:00:05]}  Nxg6 {[%clk 0:00:09]} 52. d7 {[%clk 0:00:06]}  Nxf4+ {[%clk 0:00:10]} 53. Kh6 {[%clk 0:00:05]}  Ne6 {[%clk 0:00:10]} 54. d8=Q {[%clk 0:00:06]}  Nxd8 {[%clk 0:00:09]} 55. Rxd8 {[%clk 0:00:07]}  Ke4 {[%clk 0:00:10]} 56. Rb8 {[%clk 0:00:07]}  Ke5 {[%clk 0:00:11]} 57. Rxb4 {[%clk 0:00:07]} 1-0


[Site "https://www.chess.com"]

[Event "Titled Tuesday Blitz February 15 Early 2022"]
[White "Jumabayev, Rinat"]
[Black "Gurevich, Dmitry"]
[WhiteFideId "13702661"]
[BlackFideId "2000407"]
[WhiteElo "2817"]
[BlackElo "2586"]
[Result "1-0"]
[Round "07"]
[TimeControl "180+1"]
[Date "2022.02.15"]
[WhiteClock "0:00:28"]
[BlackClock "0:00:03"]

1. e4 {[%clk 0:03:00]}  c5 {[%clk 0:02:56]} 2. Nf3 {[%clk 0:03:01]}  d6 {[%clk 0:02:55]} 3. d4 {[%clk 0:03:01]}  cxd4 {[%clk 0:02:55]} 4. Qxd4 {[%clk 0:03:02]}  a6 {[%clk 0:02:54]} 5. Be2 {[%clk 0:03:01]}  e6 {[%clk 0:02:54]} 6. O-O {[%clk 0:03:01]}  Nf6 {[%clk 0:02:54]} 7. Rd1 {[%clk 0:03:01]}  Be7 {[%clk 0:02:50]} 8. h3 {[%clk 0:02:56]}  Qc7 {[%clk 0:02:49]} 9. c4 {[%clk 0:02:49]}  b6 {[%clk 0:02:48]} 10. Nc3 {[%clk 0:02:48]}  Bb7 {[%clk 0:02:47]} 11. e5 {[%clk 0:02:40]}  dxe5 {[%clk 0:02:42]} 12. Nxe5 {[%clk 0:02:17]}  O-O {[%clk 0:02:30]} 13. Bf4 {[%clk 0:02:16]}  Rd8 {[%clk 0:02:21]} 14. Qe3 {[%clk 0:02:03]}  Qc5 {[%clk 0:02:00]} 15. Na4 {[%clk 0:01:45]}  Qxe3 {[%clk 0:01:55]} 16. Bxe3 {[%clk 0:01:46]}  b5 {[%clk 0:01:38]} 17. Nb6 {[%clk 0:01:43]}  Ra7 {[%clk 0:01:38]} 18. cxb5 {[%clk 0:01:17]}  axb5 {[%clk 0:01:30]} 19. Nc8 {[%clk 0:01:14]}  Rxc8 {[%clk 0:01:22]} 20. Bxa7 {[%clk 0:01:13]}  b4 {[%clk 0:01:18]} 21. Rac1 {[%clk 0:01:12]}  Rxc1 {[%clk 0:00:38]} 22. Rxc1 {[%clk 0:01:13]}  Bd6 {[%clk 0:00:37]} 23. Rd1 {[%clk 0:01:05]}  Bd5 {[%clk 0:00:26]} 24. Nc4 {[%clk 0:00:57]}  Bc7 {[%clk 0:00:24]} 25. Bc5 {[%clk 0:00:42]}  Na6 {[%clk 0:00:21]} 26. Be7 {[%clk 0:00:42]}  Nb8 {[%clk 0:00:10]} 27. Bxb4 {[%clk 0:00:41]}  g5 {[%clk 0:00:07]} 28. b3 {[%clk 0:00:40]}  Ne4 {[%clk 0:00:06]} 29. a4 {[%clk 0:00:36]}  Nc6 {[%clk 0:00:06]} 30. Be1 {[%clk 0:00:36]}  Be5 {[%clk 0:00:06]} 31. Bf3 {[%clk 0:00:34]}  Bf6 {[%clk 0:00:04]} 32. Ne3 {[%clk 0:00:32]}  Nd4 {[%clk 0:00:03]} 33. Nxd5 {[%clk 0:00:29]}  exd5 {[%clk 0:00:03]} 34. Bxe4 {[%clk 0:00:28]}  dxe4 {[%clk 0:00:03]} 35. b4 {[%clk 0:00:28]} 1-0


[Site "https://www.chess.com"]

[Event "Titled Tuesday Blitz February 15 Early 2022"]
[White "Khoroshev, Nikita"]
[Black "Selbes, Tarik"]
[WhiteFideId "14200287"]
[BlackFideId "6302513"]
[WhiteElo "2744"]
[BlackElo "2542"]
[Result "1-0"]
[Round "07"]
[TimeControl "180+1"]
[Date "2022.02.15"]
[WhiteClock "0:01:08"]
[BlackClock "0:00:57"]

1. d4 {[%clk 0:02:55]}  Nf6 {[%clk 0:02:57]} 2. c4 {[%clk 0:02:54]}  g6 {[%clk 0:02:58]} 3. Nc3 {[%clk 0:02:53]}  Bg7 {[%clk 0:02:58]} 4. e4 {[%clk 0:02:54]}  O-O {[%clk 0:02:59]} 5. h3 {[%clk 0:02:54]}  d6 {[%clk 0:02:59]} 6. Be3 {[%clk 0:02:54]}  a6 {[%clk 0:02:48]} 7. Nf3 {[%clk 0:02:50]}  Nc6 {[%clk 0:02:48]} 8. Be2 {[%clk 0:02:48]}  Re8 {[%clk 0:02:38]} 9. O-O {[%clk 0:02:47]}  Rb8 {[%clk 0:02:35]} 10. d5 {[%clk 0:02:43]}  Ne5 {[%clk 0:02:31]} 11. Nxe5 {[%clk 0:02:42]}  dxe5 {[%clk 0:02:32]} 12. c5 {[%clk 0:02:34]}  e6 {[%clk 0:02:23]} 13. Bc4 {[%clk 0:02:17]}  exd5 {[%clk 0:02:22]} 14. exd5 {[%clk 0:02:17]}  Bf5 {[%clk 0:02:17]} 15. Qd2 {[%clk 0:02:15]}  b5 {[%clk 0:02:10]} 16. cxb6 {[%clk 0:02:12]}  cxb6 {[%clk 0:02:10]} 17. Bxa6 {[%clk 0:02:12]}  Ne4 {[%clk 0:02:07]} 18. Nxe4 {[%clk 0:02:10]}  Bxe4 {[%clk 0:02:08]} 19. Bb5 {[%clk 0:02:07]}  Re7 {[%clk 0:02:03]} 20. d6 {[%clk 0:02:07]}  Re6 {[%clk 0:02:02]} 21. Rfd1 {[%clk 0:02:04]}  Bf8 {[%clk 0:01:58]} 22. d7 {[%clk 0:02:00]}  Rd6 {[%clk 0:01:56]} 23. Qe2 {[%clk 0:01:57]}  Ba8 {[%clk 0:01:45]} 24. Rxd6 {[%clk 0:01:52]}  Bxd6 {[%clk 0:01:46]} 25. Rd1 {[%clk 0:01:52]}  Bf8 {[%clk 0:01:37]} 26. Qc4 {[%clk 0:01:46]}  Bc5 {[%clk 0:01:27]} 27. Qc3 {[%clk 0:01:38]}  Bxe3 {[%clk 0:01:22]} 28. Qxe3 {[%clk 0:01:39]}  Qf6 {[%clk 0:01:22]} 29. Re1 {[%clk 0:01:30]}  e4 {[%clk 0:01:19]} 30. Rd1 {[%clk 0:01:27]}  Rd8 {[%clk 0:01:17]} 31. Rd2 {[%clk 0:01:22]}  Qe6 {[%clk 0:01:10]} 32. a4 {[%clk 0:01:20]}  Bc6 {[%clk 0:00:58]} 33. Qxb6 {[%clk 0:01:13]}  e3 {[%clk 0:00:57]} 34. Qxd8+ {[%clk 0:01:08]} 1-0


[Site "https://www.chess.com"]

[Event "Titled Tuesday Blitz February 15 Early 2022"]
[White "Klinova, Masha"]
[Black "Ardila, Oscar Humberto"]
[WhiteFideId "2802015"]
[BlackFideId "4404742"]
[WhiteElo "2274"]
[BlackElo "1898"]
[Result "1-0"]
[Round "07"]
[TimeControl "180+1"]
[Date "2022.02.15"]
[WhiteClock "0:01:01"]
[BlackClock "0:00:03"]

1. e4 {[%clk 0:02:57]}  e5 {[%clk 0:02:59]} 2. Nf3 {[%clk 0:02:55]}  Nf6 {[%clk 0:02:59]} 3. Nc3 {[%clk 0:02:53]}  Nc6 {[%clk 0:02:58]} 4. Bb5 {[%clk 0:02:48]}  Bb4 {[%clk 0:02:58]} 5. d3 {[%clk 0:02:47]}  d6 {[%clk 0:02:57]} 6. O-O {[%clk 0:02:46]}  Bxc3 {[%clk 0:02:57]} 7. bxc3 {[%clk 0:02:45]}  O-O {[%clk 0:02:57]} 8. Bxc6 {[%clk 0:02:43]}  bxc6 {[%clk 0:02:57]} 9. h3 {[%clk 0:02:44]}  h6 {[%clk 0:02:56]} 10. c4 {[%clk 0:02:43]}  c5 {[%clk 0:02:53]} 11. Rb1 {[%clk 0:02:42]}  Qe7 {[%clk 0:02:44]} 12. Nh2 {[%clk 0:02:38]}  g5 {[%clk 0:02:26]} 13. c3 {[%clk 0:02:29]}  Kg7 {[%clk 0:02:23]} 14. f3 {[%clk 0:02:28]}  Bd7 {[%clk 0:02:20]} 15. d4 {[%clk 0:02:28]}  Rfb8 {[%clk 0:02:10]} 16. Be3 {[%clk 0:02:27]}  Rb6 {[%clk 0:02:08]} 17. dxc5 {[%clk 0:02:10]}  dxc5 {[%clk 0:02:05]} 18. Qd2 {[%clk 0:02:06]}  Be6 {[%clk 0:02:03]} 19. Rb5 {[%clk 0:01:56]}  Bxc4 {[%clk 0:01:48]} 20. Bxc5 {[%clk 0:01:54]}  Qe6 {[%clk 0:01:47]} 21. Bxb6 {[%clk 0:01:40]}  axb6 {[%clk 0:01:47]} 22. Rb2 {[%clk 0:01:36]}  Bxf1 {[%clk 0:01:31]} 23. Nxf1 {[%clk 0:01:35]}  Qc4 {[%clk 0:01:26]} 24. Ne3 {[%clk 0:01:34]}  Qc5 {[%clk 0:01:25]} 25. Kh2 {[%clk 0:01:34]}  Kg6 {[%clk 0:01:22]} 26. c4 {[%clk 0:01:24]}  Ra3 {[%clk 0:01:19]} 27. Nf5 {[%clk 0:01:20]}  Ra8 {[%clk 0:00:23]} 28. Rb5 {[%clk 0:01:17]}  Qxc4 {[%clk 0:00:19]} 29. Rxe5 {[%clk 0:01:15]}  Qxa2 {[%clk 0:00:18]} 30. Qc3 {[%clk 0:01:04]}  Qf2 {[%clk 0:00:15]} 31. Ne7+ {[%clk 0:01:02]}  Kg7 {[%clk 0:00:14]} 32. Rf5 {[%clk 0:01:02]}  Ra2 {[%clk 0:00:03]} 33. Qxf6+ {[%clk 0:01:01]}  Kf8 {[%clk 0:00:03]} 34. Qxf7# {[%clk 0:01:01]} 1-0


[Site "https://www.chess.com"]

[Event "Titled Tuesday Blitz February 15 Early 2022"]
[White "Kopylov, Alexander A."]
[Black "Poormosavi, Seyed Kian"]
[WhiteFideId "4164857"]
[BlackFideId "12585807"]
[WhiteElo "2760"]
[BlackElo "2565"]
[Result "1-0"]
[Round "07"]
[TimeControl "180+1"]
[Date "2022.02.15"]
[WhiteClock "0:01:18"]
[BlackClock "0:00:01"]

1. e4 {[%clk 0:03:00]}  c6 {[%clk 0:02:59]} 2. Nf3 {[%clk 0:03:00]}  d5 {[%clk 0:02:59]} 3. d3 {[%clk 0:03:00]}  dxe4 {[%clk 0:02:58]} 4. dxe4 {[%clk 0:03:00]}  Qxd1+ {[%clk 0:02:59]} 5. Kxd1 {[%clk 0:03:01]}  Nf6 {[%clk 0:03:00]} 6. Nfd2 {[%clk 0:03:01]}  Nbd7 {[%clk 0:02:56]} 7. f3 {[%clk 0:03:01]}  e5 {[%clk 0:02:57]} 8. a4 {[%clk 0:03:00]}  Bc5 {[%clk 0:02:56]} 9. Nb3 {[%clk 0:02:58]}  Bb6 {[%clk 0:02:53]} 10. a5 {[%clk 0:02:58]}  Bc7 {[%clk 0:02:54]} 11. Be3 {[%clk 0:02:58]}  O-O {[%clk 0:02:53]} 12. N1d2 {[%clk 0:02:57]}  Rd8 {[%clk 0:02:51]} 13. c3 {[%clk 0:02:56]}  Ne8 {[%clk 0:02:49]} 14. Kc2 {[%clk 0:02:56]}  Nd6 {[%clk 0:02:47]} 15. Nc4 {[%clk 0:02:56]}  Nxc4 {[%clk 0:02:45]} 16. Bxc4 {[%clk 0:02:57]}  Nf8 {[%clk 0:02:45]} 17. Nc5 {[%clk 0:02:54]}  Rb8 {[%clk 0:02:33]} 18. b4 {[%clk 0:02:46]}  b6 {[%clk 0:02:32]} 19. Nb3 {[%clk 0:02:35]}  Be6 {[%clk 0:02:28]} 20. Bxe6 {[%clk 0:02:34]}  Nxe6 {[%clk 0:02:29]} 21. axb6 {[%clk 0:02:34]}  axb6 {[%clk 0:02:22]} 22. Ra7 {[%clk 0:02:33]}  Rd7 {[%clk 0:02:13]} 23. Rd1 {[%clk 0:02:32]}  Rxd1 {[%clk 0:02:08]} 24. Kxd1 {[%clk 0:02:33]}  Kf8 {[%clk 0:02:07]} 25. Nd2 {[%clk 0:02:32]}  Ke8 {[%clk 0:01:55]} 26. Nc4 {[%clk 0:02:32]}  b5 {[%clk 0:01:56]} 27. Na5 {[%clk 0:02:25]}  Kd7 {[%clk 0:01:53]} 28. Ke2 {[%clk 0:02:15]}  f6 {[%clk 0:01:37]} 29. g3 {[%clk 0:02:15]}  Kd6 {[%clk 0:01:11]} 30. Nb7+ {[%clk 0:02:13]}  Kd7 {[%clk 0:01:09]} 31. Nc5+ {[%clk 0:02:04]}  Nxc5 {[%clk 0:01:04]} 32. Bxc5 {[%clk 0:02:05]}  Kc8 {[%clk 0:01:00]} 33. f4 {[%clk 0:02:03]}  exf4 {[%clk 0:00:58]} 34. gxf4 {[%clk 0:02:03]}  Rb7 {[%clk 0:00:59]} 35. Ra6 {[%clk 0:01:55]}  Bxf4 {[%clk 0:00:57]} 36. Rxc6+ {[%clk 0:01:55]}  Rc7 {[%clk 0:00:57]} 37. Ra6 {[%clk 0:01:40]}  Be5 {[%clk 0:00:54]} 38. Ra8+ {[%clk 0:01:39]}  Kb7 {[%clk 0:00:55]} 39. Ra5 {[%clk 0:01:39]}  Bxc3 {[%clk 0:00:52]} 40. Rxb5+ {[%clk 0:01:39]}  Kc8 {[%clk 0:00:52]} 41. Ra5 {[%clk 0:01:38]}  Rb7 {[%clk 0:00:44]} 42. Ra4 {[%clk 0:01:38]}  Kd7 {[%clk 0:00:41]} 43. Kd3 {[%clk 0:01:37]}  Be5 {[%clk 0:00:41]} 44. Ra2 {[%clk 0:01:35]}  g5 {[%clk 0:00:28]} 45. h3 {[%clk 0:01:32]}  h5 {[%clk 0:00:28]} 46. Kc4 {[%clk 0:01:32]}  Ke6 {[%clk 0:00:28]} 47. b5 {[%clk 0:01:31]}  g4 {[%clk 0:00:28]} 48. hxg4 {[%clk 0:01:31]}  hxg4 {[%clk 0:00:29]} 49. b6 {[%clk 0:01:31]}  g3 {[%clk 0:00:29]} 50. Kb5 {[%clk 0:01:31]}  f5 {[%clk 0:00:28]} 51. exf5+ {[%clk 0:01:30]}  Kxf5 {[%clk 0:00:28]} 52. Kc6 {[%clk 0:01:31]}  Rg7 {[%clk 0:00:29]} 53. b7 {[%clk 0:01:30]}  g2 {[%clk 0:00:28]} 54. Bg1 {[%clk 0:01:30]}  Rg6+ {[%clk 0:00:25]} 55. Kd5 {[%clk 0:01:26]}  Rd6+ {[%clk 0:00:23]} 56. Kc5 {[%clk 0:01:26]}  Rg6 {[%clk 0:00:10]} 57. Rf2+ {[%clk 0:01:23]}  Ke6 {[%clk 0:00:10]} 58. Re2 {[%clk 0:01:24]}  Rg8 {[%clk 0:00:08]} 59. Bh2 {[%clk 0:01:23]}  g1=Q+ {[%clk 0:00:03]} 60. Bxg1 {[%clk 0:01:20]}  Kf5 {[%clk 0:00:02]} 61. Bh2 {[%clk 0:01:18]}  Bxh2 {[%clk 0:00:02]} 62. Rxh2 {[%clk 0:01:18]}  Ke6 {[%clk 0:00:02]} 63. Rd2 {[%clk 0:01:18]}  Ke7 {[%clk 0:00:01]} 64. Kb6 {[%clk 0:01:18]} 1-0


[Site "https://www.chess.com"]

[Event "Titled Tuesday Blitz February 15 Early 2022"]
[White "Korkmaz, Necmettin"]
[Black "Demchenko, Anton"]
[WhiteFideId "6303285"]
[BlackFideId "4160258"]
[WhiteElo "2480"]
[BlackElo "2873"]
[Result "0-1"]
[Round "07"]
[TimeControl "180+1"]
[Date "2022.02.15"]
[WhiteClock "0:00:38"]
[BlackClock "0:01:15"]

1. e4 {[%clk 0:03:00]}  e5 {[%clk 0:03:00]} 2. Nf3 {[%clk 0:03:00]}  Nc6 {[%clk 0:03:00]} 3. d4 {[%clk 0:02:56]}  exd4 {[%clk 0:03:00]} 4. Bc4 {[%clk 0:02:56]}  Nf6 {[%clk 0:03:00]} 5. O-O {[%clk 0:02:56]}  Nxe4 {[%clk 0:02:57]} 6. Re1 {[%clk 0:02:56]}  d5 {[%clk 0:02:58]} 7. Bxd5 {[%clk 0:02:57]}  Qxd5 {[%clk 0:02:59]} 8. Nc3 {[%clk 0:02:57]}  Qh5 {[%clk 0:02:58]} 9. Nxe4 {[%clk 0:02:57]}  Be6 {[%clk 0:02:55]} 10. Bg5 {[%clk 0:02:57]}  h6 {[%clk 0:02:56]} 11. Bf6 {[%clk 0:02:55]}  Qg6 {[%clk 0:02:54]} 12. Nh4 {[%clk 0:02:54]}  Qh7 {[%clk 0:02:51]} 13. Qh5 {[%clk 0:02:54]}  Kd7 {[%clk 0:02:50]} 14. Rad1 {[%clk 0:02:52]}  Re8 {[%clk 0:02:45]} 15. Bxd4 {[%clk 0:02:38]}  Kc8 {[%clk 0:02:36]} 16. Bc3 {[%clk 0:02:29]}  Be7 {[%clk 0:02:15]} 17. Nf3 {[%clk 0:02:03]}  Kb8 {[%clk 0:02:05]} 18. Qb5 {[%clk 0:01:56]}  a6 {[%clk 0:02:02]} 19. Qe2 {[%clk 0:01:48]}  Bf5 {[%clk 0:01:57]} 20. Nd4 {[%clk 0:01:35]}  Nxd4 {[%clk 0:01:49]} 21. Bxd4 {[%clk 0:01:34]}  Bb4 {[%clk 0:01:43]} 22. c3 {[%clk 0:01:21]}  Rxe4 {[%clk 0:01:42]} 23. Qxe4 {[%clk 0:01:21]}  Bxe4 {[%clk 0:01:39]} 24. cxb4 {[%clk 0:01:22]}  Qg6 {[%clk 0:01:39]} 25. g3 {[%clk 0:01:12]}  b6 {[%clk 0:01:37]} 26. Re3 {[%clk 0:01:11]}  Bb7 {[%clk 0:01:34]} 27. Bc3 {[%clk 0:01:08]}  Qc6 {[%clk 0:01:31]} 28. f3 {[%clk 0:01:08]}  Re8 {[%clk 0:01:30]} 29. Rde1 {[%clk 0:01:06]}  Rxe3 {[%clk 0:01:29]} 30. Rxe3 {[%clk 0:01:07]}  f6 {[%clk 0:01:28]} 31. h4 {[%clk 0:01:06]}  Qd5 {[%clk 0:01:26]} 32. g4 {[%clk 0:01:03]}  Qxa2 {[%clk 0:01:23]} 33. g5 {[%clk 0:01:03]}  hxg5 {[%clk 0:01:23]} 34. hxg5 {[%clk 0:01:03]}  Qb1+ {[%clk 0:01:23]} 35. Kf2 {[%clk 0:01:03]}  fxg5 {[%clk 0:01:21]} 36. Bxg7 {[%clk 0:01:03]}  Qc2+ {[%clk 0:01:20]} 37. Kg3 {[%clk 0:01:03]}  Qf5 {[%clk 0:01:19]} 38. Bc3 {[%clk 0:00:45]}  Qf4+ {[%clk 0:01:19]} 39. Kf2 {[%clk 0:00:46]}  g4 {[%clk 0:01:18]} 40. Be5 {[%clk 0:00:43]}  g3+ {[%clk 0:01:16]} 41. Ke2 {[%clk 0:00:41]}  Bxf3+ {[%clk 0:01:15]} 42. Kd3 {[%clk 0:00:38]}  Qf5+ {[%clk 0:01:15]} 0-1


[Site "https://www.chess.com"]

[Event "Titled Tuesday Blitz February 15 Early 2022"]
[White "Krysa, Leandro"]
[Black "Tari, Aryan"]
[WhiteFideId "116807"]
[BlackFideId "1510045"]
[WhiteElo "2490"]
[BlackElo "2567"]
[Result "0-1"]
[Round "07"]
[TimeControl "180+1"]
[Date "2022.02.15"]
[WhiteClock "0:00:02"]
[BlackClock "0:00:42"]

1. e4 {[%clk 0:03:00]}  c6 {[%clk 0:03:00]} 2. d4 {[%clk 0:02:59]}  d5 {[%clk 0:03:01]} 3. exd5 {[%clk 0:03:00]}  cxd5 {[%clk 0:03:01]} 4. Bd3 {[%clk 0:03:01]}  Nf6 {[%clk 0:02:59]} 5. h3 {[%clk 0:02:59]}  Nc6 {[%clk 0:02:57]} 6. c3 {[%clk 0:02:59]}  g6 {[%clk 0:02:49]} 7. Nf3 {[%clk 0:02:52]}  Bf5 {[%clk 0:02:49]} 8. Be2 {[%clk 0:02:48]}  Bg7 {[%clk 0:02:46]} 9. O-O {[%clk 0:02:48]}  Qc7 {[%clk 0:02:45]} 10. Re1 {[%clk 0:02:47]}  O-O {[%clk 0:02:45]} 11. Nbd2 {[%clk 0:02:46]}  Ne4 {[%clk 0:02:34]} 12. Nh4 {[%clk 0:02:38]}  Be6 {[%clk 0:02:05]} 13. Nhf3 {[%clk 0:02:12]}  Bf5 {[%clk 0:02:00]} 14. Nh4 {[%clk 0:02:10]}  Be6 {[%clk 0:02:00]} 15. Nhf3 {[%clk 0:02:10]}  Rad8 {[%clk 0:01:57]} 16. Nf1 {[%clk 0:02:02]}  f5 {[%clk 0:01:51]} 17. Ng5 {[%clk 0:01:39]}  Bc8 {[%clk 0:01:45]} 18. f3 {[%clk 0:01:39]}  Nd6 {[%clk 0:01:20]} 19. Bd3 {[%clk 0:01:33]}  e5 {[%clk 0:01:20]} 20. dxe5 {[%clk 0:01:31]}  Nxe5 {[%clk 0:01:21]} 21. Bf4 {[%clk 0:01:18]}  Ndc4 {[%clk 0:01:15]} 22. Qe2 {[%clk 0:00:52]}  Rfe8 {[%clk 0:01:08]} 23. b3 {[%clk 0:00:47]}  Nd6 {[%clk 0:00:54]} 24. h4 {[%clk 0:00:17]}  Qxc3 {[%clk 0:00:53]} 25. Bb5 {[%clk 0:00:07]}  Qc5+ {[%clk 0:00:47]} 26. Kh1 {[%clk 0:00:04]}  Qxb5 {[%clk 0:00:44]} 27. Qxb5 {[%clk 0:00:03]}  Nxb5 {[%clk 0:00:44]} 28. Red1 {[%clk 0:00:03]}  d4 {[%clk 0:00:43]} 29. Nd2 {[%clk 0:00:03]}  Nc3 {[%clk 0:00:43]} 30. Re1 {[%clk 0:00:03]}  Nd3 {[%clk 0:00:43]} 31. Rxe8+ {[%clk 0:00:03]}  Rxe8 {[%clk 0:00:44]} 32. Bc7 {[%clk 0:00:02]}  h6 {[%clk 0:00:43]} 33. Nh3 {[%clk 0:00:02]}  Be5 {[%clk 0:00:42]} 34. Nc4 {[%clk 0:00:02]}  Bxc7 {[%clk 0:00:42]} 0-1


[Site "https://www.chess.com"]

[Event "Titled Tuesday Blitz February 15 Early 2022"]
[White "Kuznecovs, Nikita"]
[Black "Carrasco Miranda, Andres"]
[WhiteFideId "11604557"]
[BlackFideId "3405990"]
[WhiteElo "2127"]
[BlackElo "2177"]
[Result "1-0"]
[Round "07"]
[TimeControl "180+1"]
[Date "2022.02.15"]
[WhiteClock "0:01:56"]
[BlackClock "0:01:32"]

1. Nf3 {[%clk 0:03:00]}  Nf6 {[%clk 0:02:56]} 2. c4 {[%clk 0:03:00]}  g6 {[%clk 0:02:56]} 3. Nc3 {[%clk 0:03:01]}  d5 {[%clk 0:02:55]} 4. cxd5 {[%clk 0:03:01]}  Nxd5 {[%clk 0:02:56]} 5. e4 {[%clk 0:03:01]}  Nxc3 {[%clk 0:02:56]} 6. bxc3 {[%clk 0:03:01]}  Bg7 {[%clk 0:02:56]} 7. Bc4 {[%clk 0:03:02]}  O-O {[%clk 0:02:56]} 8. O-O {[%clk 0:03:02]}  c5 {[%clk 0:02:56]} 9. Rb1 {[%clk 0:03:02]}  b6 {[%clk 0:02:56]} 10. Bd5 {[%clk 0:03:01]}  Ba6 {[%clk 0:02:50]} 11. Bxa8 {[%clk 0:03:01]}  Bxf1 {[%clk 0:02:50]} 12. Qxf1 {[%clk 0:03:02]}  Nd7 {[%clk 0:02:51]} 13. Bc6 {[%clk 0:03:00]}  Nf6 {[%clk 0:02:51]} 14. d3 {[%clk 0:02:59]}  Qc8 {[%clk 0:02:48]} 15. Ba4 {[%clk 0:02:58]}  Qa6 {[%clk 0:02:46]} 16. Bb3 {[%clk 0:02:58]}  Rd8 {[%clk 0:02:45]} 17. Bc4 {[%clk 0:02:58]}  Qb7 {[%clk 0:02:45]} 18. Bf4 {[%clk 0:02:52]}  Nh5 {[%clk 0:02:43]} 19. Be3 {[%clk 0:02:52]}  Bxc3 {[%clk 0:02:42]} 20. Bxc5 {[%clk 0:02:47]}  Nf4 {[%clk 0:02:41]} 21. Be3 {[%clk 0:02:47]}  e5 {[%clk 0:02:38]} 22. Ng5 {[%clk 0:02:44]}  Rf8 {[%clk 0:02:32]} 23. g3 {[%clk 0:02:34]}  Nh5 {[%clk 0:02:31]} 24. Qh3 {[%clk 0:02:31]}  Qe7 {[%clk 0:02:29]} 25. Rb5 {[%clk 0:02:23]}  Bd4 {[%clk 0:02:26]} 26. Bxd4 {[%clk 0:02:19]}  exd4 {[%clk 0:02:27]} 27. Rd5 {[%clk 0:02:20]}  Nf6 {[%clk 0:02:22]} 28. Rxd4 {[%clk 0:02:19]}  h5 {[%clk 0:02:18]} 29. Qh4 {[%clk 0:02:13]}  Ng4 {[%clk 0:02:15]} 30. Nxf7 {[%clk 0:02:09]}  Qxh4 {[%clk 0:02:13]} 31. gxh4 {[%clk 0:02:08]}  Rxf7 {[%clk 0:02:13]} 32. Rd7 {[%clk 0:02:08]}  Ne5 {[%clk 0:02:13]} 33. Rxf7 {[%clk 0:02:07]}  Nxf7 {[%clk 0:02:12]} 34. f4 {[%clk 0:02:08]}  Kf8 {[%clk 0:02:12]} 35. Bxf7 {[%clk 0:02:08]}  Kxf7 {[%clk 0:02:13]} 36. Kf2 {[%clk 0:02:08]}  b5 {[%clk 0:02:14]} 37. Ke3 {[%clk 0:02:09]}  Ke6 {[%clk 0:02:13]} 38. Kd4 {[%clk 0:02:09]}  Kd6 {[%clk 0:02:13]} 39. Kc3 {[%clk 0:02:07]}  a5 {[%clk 0:02:12]} 40. d4 {[%clk 0:02:07]}  Kc6 {[%clk 0:02:10]} 41. a3 {[%clk 0:02:04]}  Kd6 {[%clk 0:02:10]} 42. d5 {[%clk 0:02:00]}  Kc5 {[%clk 0:02:07]} 43. Kd3 {[%clk 0:02:00]}  b4 {[%clk 0:01:32]} 44. axb4+ {[%clk 0:02:00]}  Kxb4 {[%clk 0:01:33]} 45. d6 {[%clk 0:01:56]}  a4 {[%clk 0:01:32]} 46. d7 {[%clk 0:01:56]} 1-0


[Site "https://www.chess.com"]